fUSD/lending_fUSD_20260511
["ID","MTS","AMOUNT","RATE_DAILY","PERIOD"]
[422036994,1778511041000,-2711.36094682,0.000253,2]
[422036997,1778511041000,-1456.16577332,0.000255,2]
[422036995,1778511041000,-1610.12,0.00025419,2]
[422036998,1778511041000,-386.9899226,0.000255,2]
[422036996,1778511041000,-2711.36094682,0.000255,2]
[422037011,1778511042000,-823.36816736,0.00025519,2]
[422037010,1778511042000,-43.34979142,0.00025519,2]
[422037009,1778511042000,-3494.65020858,0.00025519,2]
[422037008,1778511042000,-3590.20304609,0.000255,2]
[422037007,1778511042000,-417.0,0.00022519,2]
[422037012,1778511044000,-150.74,0.00024658,2]
[422037015,1778511044000,-1269.0,0.00025519,2]
[422037020,1778511044000,-850.0,0.00025619,2]
[422037014,1778511044000,-102.63183264,0.00025519,2]
[422037017,1778511044000,-929.0,0.00025519,2]
[422037013,1778511044000,-150.74,0.00024829,7]
[422037016,1778511044000,-1222.0,0.00025519,2]
[422037019,1778511044000,-417.0,0.00025519,2]
[422037021,1778511044000,-146.2003565,0.00025683,2]
[422037018,1778511044000,-6049.0,0.00025519,2]
[422037041,1778511045000,-759.08,0.00026027,2]
[422037037,1778511045000,-2711.36094682,0.00026,2]
[422037039,1778511045000,-3186.80998224,0.00026011,2]
[422037038,1778511045000,-1099.6,0.00026,2]
[422037040,1778511045000,-500.0,0.00026013,2]
[422037036,1778511045000,-509.0,0.00025823,3]
[422037034,1778511045000,-2711.36094682,0.000258,2]
[422037031,1778511045000,-279.0,0.00025742,2]
[422037035,1778511045000,-2459.2724256,0.00025801,2]
[422037042,1778511045000,-155.24,0.00026027,2]
[422037029,1778511045000,-199.646,0.0002571,2]
[422037030,1778511045000,-200.0,0.0002571,2]
[422037028,1778511045000,-197.24321127,0.0002571,2]
[422037027,1778511045000,-2.75678873,0.0002571,2]
[422037026,1778511045000,-166.7996435,0.00025683,2]
[422037025,1778511045000,-150.74,0.00025,30]
[422037033,1778511045000,-215.0,0.00025742,2]
[422037044,1778511045000,-155.3,0.00026027,2]
[422037032,1778511045000,-150.0,0.00025742,2]
[422037045,1778511045000,-2179.46062711,0.00026043,2]
[422037043,1778511045000,-759.31,0.00026027,2]
[422037062,1778511045000,-759.08,0.000262,2]
[422037061,1778511045000,-155.3,0.00026191,2]
[422037060,1778511045000,-155.24,0.00026191,2]
[422037058,1778511045000,-759.08,0.00026171,7]
[422037055,1778511045000,-155.3,0.00026136,30]
[422037057,1778511045000,-759.31,0.00026142,7]
[422037056,1778511045000,-759.08,0.00026142,7]
[422037059,1778511045000,-759.31,0.00026171,7]
[422037052,1778511045000,-759.08,0.00026113,2]
[422037051,1778511045000,-759.31,0.00026084,2]
[422037053,1778511045000,-759.31,0.00026113,2]
[422037050,1778511045000,-759.08,0.00026084,2]
[422037049,1778511045000,-155.3,0.00026081,7]
[422037048,1778511045000,-155.24,0.00026081,7]
[422037047,1778511045000,-759.31,0.00026055,7]
[422037054,1778511045000,-155.24,0.00026136,30]
[422037046,1778511045000,-759.08,0.00026055,7]
[422037090,1778511046000,-759.31,0.00026431,2]
[422037101,1778511046000,-759.31,0.00026517,7]
[422037100,1778511046000,-759.08,0.00026517,7]
[422037099,1778511046000,-2711.36094682,0.000265,2]
[422037097,1778511046000,-759.31,0.00026488,7]
[422037095,1778511046000,-155.3,0.00026465,30]
[422037096,1778511046000,-759.08,0.00026488,7]
[422037094,1778511046000,-155.24,0.00026465,30]
[422037093,1778511046000,-759.31,0.00026459,2]
[422037103,1778511046000,-155.3,0.0002652,2]
[422037098,1778511046000,-152.0,0.00026496,7]
[422037102,1778511046000,-155.24,0.0002652,2]
[422037114,1778511046000,-365.0,0.0002722,10]
[422037108,1778511046000,-759.39,0.00026575,7]
[422037107,1778511046000,-759.26,0.00026575,7]
[422037105,1778511046000,-759.31,0.00026546,2]
[422037106,1778511046000,-229.54203604,0.00026567,2]
[422037110,1778511046000,-279.59237773,0.00026653,2]
[422037109,1778511046000,-155.39,0.00026575,7]
[422037112,1778511046000,-348.0571,0.00027,2]
[422037111,1778511046000,-2711.36094682,0.000268,2]
[422037113,1778511046000,-2711.36094682,0.000271,2]
[422037115,1778511046000,-506.0,0.0002722,10]
[422037117,1778511046000,-509.0,0.00027249,4]
[422037091,1778511046000,-160.71,0.00026433,2]
[422037104,1778511046000,-759.08,0.00026546,2]
[422037092,1778511046000,-759.08,0.00026459,2]
[422037068,1778511046000,-759.08,0.00026257,2]
[422037089,1778511046000,-759.08,0.00026431,2]
[422037064,1778511046000,-759.08,0.00026229,7]
[422037065,1778511046000,-759.31,0.00026229,7]
[422037063,1778511046000,-759.31,0.000262,2]
[422037066,1778511046000,-155.24,0.00026246,7]
[422037072,1778511046000,-234.4,0.00026296,2]
[422037069,1778511046000,-759.31,0.00026257,2]
[422037116,1778511046000,-374.0,0.0002722,10]
[422037071,1778511046000,-759.31,0.00026286,2]
[422037070,1778511046000,-759.08,0.00026286,2]
[422037067,1778511046000,-155.3,0.00026246,7]
[422037073,1778511046000,-2711.36094682,0.000263,2]
[422037075,1778511046000,-155.3,0.00026301,30]
[422037076,1778511046000,-759.08,0.00026315,7]
[422037074,1778511046000,-155.24,0.00026301,30]
[422037077,1778511046000,-759.31,0.00026315,7]
[422037079,1778511046000,-759.31,0.00026344,7]
[422037081,1778511046000,-155.3,0.00026356,2]
[422037080,1778511046000,-155.24,0.00026356,2]
[422037082,1778511046000,-759.08,0.00026373,2]
[422037083,1778511046000,-759.31,0.00026373,2]
[422037078,1778511046000,-759.08,0.00026344,7]
[422037085,1778511046000,-759.08,0.00026402,7]
[422037084,1778511046000,-162.65465443,0.000264,7]
[422037088,1778511046000,-155.3,0.0002641,7]
[422037087,1778511046000,-155.24,0.0002641,7]
[422037086,1778511046000,-759.31,0.00026402,7]
[422037118,1778511046000,-2711.36094682,0.000273,2]
[422037132,1778511046000,-151.0,0.00027397,2]
[422037119,1778511046000,-210.7663057,0.00027397,2]
[422037151,1778511046000,-409.435463,0.00027397,2]
[422037152,1778511046000,-409.435463,0.00027397,2]
[422037153,1778511046000,-409.435463,0.00027397,2]
[422037155,1778511046000,-409.435463,0.00027397,2]
[422037156,1778511046000,-409.435463,0.00027397,2]
[422037157,1778511046000,-409.435463,0.00027397,2]
[422037158,1778511046000,-409.435463,0.00027397,2]
[422037120,1778511046000,-156.76,0.00027397,2]
[422037160,1778511046000,-409.435463,0.00027397,2]
[422037162,1778511046000,-409.435463,0.00027397,2]
[422037161,1778511046000,-409.435463,0.00027397,2]
[422037164,1778511046000,-151.0,0.00027397,2]
[422037154,1778511046000,-409.435463,0.00027397,2]
[422037163,1778511046000,-409.435463,0.00027397,2]
[422037165,1778511046000,-151.0,0.00027397,2]
[422037166,1778511046000,-151.0,0.00027397,2]
[422037168,1778511046000,-151.0,0.00027397,2]
[422037172,1778511046000,-221.369429,0.00027397,2]
[422037169,1778511046000,-151.0,0.00027397,2]
[422037170,1778511046000,-151.0,0.00027397,2]
[422037171,1778511046000,-151.0,0.00027397,2]
[422037175,1778511046000,-500.0,0.000278,7]
[422037176,1778511046000,-157.88,0.00027837,13]
[422037173,1778511046000,-4476.75,0.00027397,10]
[422037177,1778511046000,-20121.93037737,0.00028,2]
[422037174,1778511046000,-161.18144398,0.000274,120]
[422037167,1778511046000,-151.0,0.00027397,2]
[422037150,1778511046000,-409.435463,0.00027397,2]
[422037159,1778511046000,-409.435463,0.00027397,2]
[422037149,1778511046000,-409.435463,0.00027397,2]
[422037121,1778511046000,-1500.0,0.00027397,2]
[422037123,1778511046000,-151.0,0.00027397,2]
[422037122,1778511046000,-199.2,0.00027397,2]
[422037148,1778511046000,-409.435463,0.00027397,2]
[422037127,1778511046000,-151.0,0.00027397,2]
[422037124,1778511046000,-151.0,0.00027397,2]
[422037126,1778511046000,-1464.03,0.00027397,2]
[422037129,1778511046000,-151.0,0.00027397,2]
[422037131,1778511046000,-151.0,0.00027397,2]
[422037130,1778511046000,-151.0,0.00027397,2]
[422037133,1778511046000,-151.0,0.00027397,2]
[422037134,1778511046000,-151.0,0.00027397,2]
[422037125,1778511046000,-151.0,0.00027397,2]
[422037135,1778511046000,-151.0,0.00027397,2]
[422037136,1778511046000,-151.0,0.00027397,2]
[422037147,1778511046000,-409.435463,0.00027397,2]
[422037145,1778511046000,-409.435463,0.00027397,2]
[422037144,1778511046000,-409.435463,0.00027397,2]
[422037142,1778511046000,-151.0,0.00027397,2]
[422037143,1778511046000,-262.945836,0.00027397,2]
[422037146,1778511046000,-409.435463,0.00027397,2]
[422037139,1778511046000,-151.0,0.00027397,2]
[422037141,1778511046000,-151.0,0.00027397,2]
[422037138,1778511046000,-151.0,0.00027397,2]
[422037137,1778511046000,-151.0,0.00027397,2]
[422037140,1778511046000,-151.0,0.00027397,2]
[422037190,1778511047000,-197.4,0.00028,2]
[422037195,1778511047000,-166.0,0.00028018,3]
[422037194,1778511047000,-166.0,0.00028018,3]
[422037193,1778511047000,-166.0,0.00028018,3]
[422037192,1778511047000,-166.0,0.00028018,3]
[422037196,1778511047000,-166.0,0.00028018,3]
[422037191,1778511047000,-197.4,0.00028,2]
[422037189,1778511047000,-197.4,0.00028,2]
[422037187,1778511047000,-197.4,0.00028,2]
[422037183,1778511047000,-162.65465443,0.00028,10]
[422037188,1778511047000,-197.4,0.00028,2]
[422037186,1778511047000,-197.4,0.00028,2]
[422037179,1778511047000,-737.18575986,0.00028,2]
[422037182,1778511047000,-643.0,0.00028,2]
[422037184,1778511047000,-1815.0,0.00028,2]
[422037180,1778511047000,-2171.97435657,0.00028,2]
[422037181,1778511047000,-160.0,0.00028,2]
[422037178,1778511047000,-286.783493,0.00028,2]
[422037198,1778511047000,-166.0,0.00028018,3]
[422037185,1778511047000,-309.0,0.00028,2]
[422037197,1778511047000,-166.0,0.00028018,3]
[422037199,1778511047000,-166.0,0.00028018,3]
[422037201,1778511047000,-308.0,0.000281,2]
[422037221,1778511047000,-160.83529037,0.00029757,2]
[422037220,1778511047000,-550.78665086,0.00029757,2]
[422037219,1778511047000,-2510.0,0.00029445,2]
[422037217,1778511047000,-500.0,0.00028822,2]
[422037213,1778511047000,-509.0,0.00028674,6]
[422037216,1778511047000,-3186.80998224,0.00028789,2]
[422037215,1778511047000,-1571.6693751,0.00028789,2]
[422037214,1778511047000,-814.39434931,0.00028789,2]
[422037210,1778511047000,-351.714966,0.00028519,2]
[422037212,1778511047000,-417.0,0.00028519,2]
[422037218,1778511047000,-509.0755707,0.00029,2]
[422037209,1778511047000,-4219.79598536,0.00028519,2]
[422037211,1778511047000,-1477.48904864,0.00028519,2]
[422037202,1778511047000,-186.916363,0.00028113,10]
[422037200,1778511047000,-172.0,0.00028018,3]
[422037204,1778511047000,-234.4,0.00028267,2]
[422037203,1778511047000,-486.67419623,0.00028128,2]
[422037206,1778511047000,-926.0,0.00028519,2]
[422037205,1778511047000,-152.12,0.00028344,120]
[422037207,1778511047000,-1269.0,0.00028519,2]
[422037208,1778511047000,-929.0,0.00028519,2]
[422037239,1778511955000,-25928.03365549,0.000107,2]
[422037238,1778511955000,-150.52,9.34e-05,2]
[422037254,1778512231000,-300.0,0.00016399,2]
[422037250,1778512231000,-181.54242435,0.00014999,2]
[422037249,1778512231000,-318.45757565,0.00014999,2]
[422037248,1778512231000,-500.0,0.00014999,2]
[422037245,1778512231000,-250.0,0.00014808,2]
[422037246,1778512231000,-318.45757565,0.00014999,2]
[422037253,1778512231000,-150.52,0.00015323,2]
[422037243,1778512231000,-466.83232797,0.000107,2]
[422037244,1778512231000,-150.52,0.00012332,2]
[422037247,1778512231000,-181.54242435,0.00014999,2]
[422037252,1778512231000,-259.94,0.00015292,2]
[422037251,1778512231000,-214.82098671,0.00015226,2]
[422037256,1778512231000,-683.7066145,0.00016399,2]
[422037255,1778512231000,-516.2933855,0.00016399,2]
[422037265,1778512231000,-156.2,0.00016438,2]
[422037266,1778512231000,-150.0,0.00017089,2]
[422037264,1778512231000,-19.02737283,0.000164,2]
[422037261,1778512231000,-1781.42258427,0.000164,2]
[422037262,1778512231000,-390.37271931,0.000164,2]
[422037260,1778512231000,-1728.70844309,0.000164,2]
[422037259,1778512231000,-427.7070206,0.000164,2]
[422037258,1778512231000,-609.8984744,0.000164,2]
[422037257,1778512231000,-654.8633855,0.000164,2]
[422037263,1778512231000,-1050.0,0.000164,2]
[422037307,1778512232000,-151.0,0.0001795,2]
[422037304,1778512232000,-151.0,0.0001795,2]
[422037294,1778512232000,-500.0,0.0001795,2]
[422037305,1778512232000,-151.0,0.0001795,2]
[422037306,1778512232000,-151.0,0.0001795,2]
[422037311,1778512232000,-45.65908037,0.0001795,2]
[422037299,1778512232000,-151.0,0.0001795,2]
[422037308,1778512232000,-151.0,0.0001795,2]
[422037310,1778512232000,-151.0,0.0001795,2]
[422037303,1778512232000,-151.0,0.0001795,2]
[422037296,1778512232000,-151.0,0.0001795,2]
[422037312,1778512232000,-454.34091963,0.0001795,2]
[422037309,1778512232000,-151.0,0.0001795,2]
[422037292,1778512232000,-151.0,0.0001795,2]
[422037276,1778512232000,-200.0,0.0001795,2]
[422037288,1778512232000,-151.0,0.0001795,2]
[422037287,1778512232000,-500.0,0.0001795,2]
[422037285,1778512232000,-151.0,0.0001795,2]
[422037280,1778512232000,-409.70823694,0.0001795,2]
[422037282,1778512232000,-500.0,0.0001795,2]
[422037272,1778512232000,-414.0,0.00017949,2]
[422037278,1778512232000,-500.0,0.0001795,2]
[422037274,1778512232000,-500.0,0.0001795,2]
[422037270,1778512232000,-420.0,0.00017922,2]
[422037268,1778512232000,-321.83,0.00017262,2]
[422037267,1778512232000,-500.0,0.00017218,2]
[422037269,1778512232000,-321.83,0.00017693,2]
[422037313,1778512232000,-151.0,0.0001795,2]
[422037290,1778512232000,-151.0,0.0001795,2]
[422037314,1778512232000,-500.0,0.0001795,2]
[422037301,1778512232000,-151.0,0.0001795,2]
[422037319,1778512232000,-151.0,0.0001795,2]
[422037343,1778512232000,-2500.0,0.0001925,2]
[422037339,1778512232000,-11082.87,0.00019178,2]
[422037342,1778512232000,-48615.8886,0.0001925,2]
[422037345,1778512232000,-335.31,0.00019293,2]
[422037341,1778512232000,-519.4426,0.0001925,2]
[422037338,1778512232000,-383.00791248,0.0001899,2]
[422037337,1778512232000,-321.83,0.00018988,2]
[422037328,1778512232000,-1680.0,0.00018012,2]
[422037330,1778512232000,-166.66,0.00018222,2]
[422037327,1778512232000,-151.0,0.0001795,2]
[422037331,1778512232000,-500.0,0.00018224,2]
[422037336,1778512232000,-321.83,0.00018556,2]
[422037332,1778512232000,-150.52,0.00018314,2]
[422037334,1778512232000,-155.929,0.0001841,2]
[422037340,1778512232000,-5000.0,0.0001925,2]
[422037325,1778512232000,-151.0,0.0001795,2]
[422037329,1778512232000,-321.83,0.00018125,2]
[422037318,1778512232000,-151.0,0.0001795,2]
[422037315,1778512232000,-151.0,0.0001795,2]
[422037317,1778512232000,-151.0,0.0001795,2]
[422037320,1778512232000,-151.0,0.0001795,2]
[422037323,1778512232000,-151.0,0.0001795,2]
[422037316,1778512232000,-500.0,0.0001795,2]
[422037322,1778512232000,-151.0,0.0001795,2]
[422037321,1778512232000,-151.0,0.0001795,2]
[422037333,1778512232000,-156.2,0.0001841,2]
[422037344,1778512232000,-141.31157759,0.00019293,2]
[422037335,1778512232000,-1302.674,0.0001841,2]
[422037326,1778512232000,-151.0,0.0001795,2]
[422037324,1778512232000,-151.0,0.0001795,2]
[422037349,1778512237000,-400.0,0.00019293,2]
[422037348,1778512237000,-326.82891593,0.00019293,2]
[422037350,1778512238000,-69.75965577,0.00019293,2]
[422037352,1778512238000,-289.49182248,0.00019349,2]
[422037354,1778512238000,-1101.0,0.0001935,2]
[422037351,1778512238000,-163.60617619,0.00019349,2]
[422037353,1778512238000,-980.31881633,0.0001935,2]
[422037381,1778512240000,-28507.92410941,0.0001935,2]
[422037380,1778512240000,-2090.40897658,0.0001935,2]
[422037389,1778512242000,-227264.76742695,0.0001935,2]
[422037387,1778512242000,-28023.74913751,0.0001935,2]
[422037388,1778512242000,-11679.81651685,0.0001935,2]
[422037395,1778512243000,-4893.45375395,0.0001935,2]
[422037393,1778512243000,-40069.3200158,0.0001935,2]
[422037392,1778512243000,-11909.25751123,0.0001935,2]
[422037391,1778512243000,-16934.24066084,0.0001935,2]
[422037390,1778512243000,-11322.96478012,0.0001935,2]
[422037398,1778512245000,-3128.67383142,0.0001935,2]
[422037399,1778512245000,-410.19486052,0.0001935,2]
[422037400,1778512246000,-146750.0005,0.0001935,2]
[422037466,1778513431000,-150.0,0.00017211,2]
[422037467,1778513431000,-150.0,0.00017211,2]
[422037451,1778513431000,-163.11,0.000139,2]
[422037450,1778513431000,-363.98566427,0.00011892,2]
[422037455,1778513431000,-4441.0,0.00016,2]
[422037454,1778513431000,-300.0,0.00016,2]
[422037452,1778513431000,-250.0,0.00014,2]
[422037453,1778513431000,-1200.0,0.00015999,2]
[422037457,1778513431000,-163.33,0.00016633,2]
[422037449,1778513431000,-150.52,9e-05,2]
[422037459,1778513431000,-175.42,0.00016712,2]
[422037458,1778513431000,-166.66,0.00016658,2]
[422037465,1778513431000,-150.0,0.00017211,2]
[422037462,1778513431000,-166.66,0.00017002,2]
[422037463,1778513431000,-893.61,0.00017028,2]
[422037461,1778513431000,-7369.85,0.00016948,2]
[422037460,1778513431000,-214.82098671,0.00016717,2]
[422037456,1778513431000,-166.66,0.00016315,2]
[422037464,1778513431000,-150.0,0.00017211,2]
[422037480,1778513432000,-893.61,0.00017879,2]
[422037485,1778513432000,-166.66,0.00018032,2]
[422037489,1778513432000,-500.0,0.00018249,2]
[422037488,1778513432000,-500.0,0.00018249,2]
[422037486,1778513432000,-280.49,0.00018165,2]
[422037487,1778513432000,-431.47,0.00018193,2]
[422037495,1778513432000,-151.0,0.0001841,2]
[422037491,1778513432000,-893.61,0.00018305,2]
[422037493,1778513432000,-150.0,0.00018358,2]
[422037504,1778513432000,-167.4,0.00018757,2]
[422037502,1778513432000,-893.61,0.00018731,2]
[422037484,1778513432000,-350.0,0.00018,2]
[422037490,1778513432000,-930.592,0.00018249,2]
[422037482,1778513432000,-550.0,0.0001795,2]
[422037476,1778513432000,-1680.0,0.0001758,2]
[422037479,1778513432000,-161.14,0.00017836,2]
[422037481,1778513432000,-342.83,0.0001795,2]
[422037509,1778513432000,-500.0,0.00018797,2]
[422037478,1778513432000,-166.66,0.00017689,2]
[422037477,1778513432000,-150.0,0.00017593,2]
[422037474,1778513432000,-186.4,0.00017489,2]
[422037475,1778513432000,-152.12,0.00017509,2]
[422037473,1778513432000,-1524.65,0.00017489,2]
[422037472,1778513432000,-893.61,0.00017454,2]
[422037468,1778513432000,-172.14,0.00017256,2]
[422037470,1778513432000,-150.0,0.00017328,2]
[422037471,1778513432000,-166.66,0.00017345,2]
[422037469,1778513432000,-4467.45,0.00017273,2]
[422037483,1778513432000,-150.0,0.00017976,2]
[422037503,1778513432000,-150.0,0.00018741,2]
[422037540,1778513432000,-391.68,0.0001904,3]
[422037497,1778513432000,-500.0,0.00018523,2]
[422037552,1778513432000,-534.06656813,0.0001905,2]
[422037551,1778513432000,-4067.72990303,0.0001905,2]
[422037550,1778513432000,-4438.00677323,0.0001905,2]
[422037548,1778513432000,-889.73795982,0.0001905,2]
[422037544,1778513432000,-500.0,0.00019049,2]
[422037543,1778513432000,-395.82168543,0.00019049,2]
[422037546,1778513432000,-13222.07525488,0.0001905,2]
[422037545,1778513432000,-44151.35591417,0.0001905,2]
[422037547,1778513432000,-268.0,0.0001905,2]
[422037541,1778513432000,-154.34,0.0001904,3]
[422037542,1778513432000,-202.64427573,0.00019049,2]
[422037538,1778513432000,-698.86,0.00018973,2]
[422037539,1778513432000,-619.0,0.00019027,2]
[422037536,1778513432000,-2797.52572278,0.0001895,2]
[422037549,1778513432000,-1211.89790873,0.0001905,2]
[422037537,1778513432000,-488.99,0.00018973,2]
[422037534,1778513432000,-2147.45735204,0.0001895,2]
[422037499,1778513432000,-500.0,0.00018523,2]
[422037501,1778513432000,-500.0,0.00018523,2]
[422037515,1778513432000,-500.0,0.00018797,2]
[422037516,1778513432000,-500.0,0.00018797,2]
[422037512,1778513432000,-500.0,0.00018797,2]
[422037506,1778513432000,-500.0,0.00018797,2]
[422037523,1778513432000,-186.4,0.0001895,2]
[422037518,1778513432000,-1623.667,0.0001895,2]
[422037530,1778513432000,-186.4,0.0001895,2]
[422037520,1778513432000,-186.4,0.0001895,2]
[422037528,1778513432000,-186.4,0.0001895,2]
[422037525,1778513432000,-186.4,0.0001895,2]
[422037533,1778513432000,-1912.08598938,0.0001895,2]
[422037570,1778513440000,-570.1,0.0001905,2]
[422037569,1778513440000,-154.34,0.0001904,3]
[422037573,1778513440000,-11027.32435583,0.0001905,2]
[422037572,1778513440000,-520.70454437,0.0001905,2]
[422037571,1778513440000,-10902.94528429,0.0001905,2]
[422037578,1778513440000,-386.9899226,0.0001905,2]
[422037574,1778513440000,-16004.0,0.0001905,2]
[422037586,1778513440000,-429.88360576,0.0001905,2]
[422037576,1778513440000,-11857.49577537,0.0001905,2]
[422037577,1778513440000,-4088.60148055,0.0001905,2]
[422037575,1778513440000,-8324.72,0.0001905,2]
[422037587,1778513441000,-5950.19136686,0.0001905,2]
[422037619,1778513443000,-11609.62373962,0.0001905,2]
[422037618,1778513443000,-1767.999054,0.0001905,2]
[422037617,1778513443000,-2643.50759275,0.0001905,2]
[422037631,1778513446000,-366.67886909,0.0001905,2]
[422037637,1778513446000,-401.65716503,0.0001905,2]
[422037635,1778513446000,-3271.75528198,0.0001905,2]
[422037636,1778513446000,-9747.54711451,0.0001905,2]
[422037634,1778513446000,-450.335034,0.0001905,2]
[422037633,1778513446000,-554.69999478,0.0001905,2]
[422037632,1778513446000,-1366.5041128,0.0001905,2]
[422037630,1778513446000,-490.27590615,0.0001905,2]
[422037649,1778514238000,202.67,0.00027397,120]
[422037654,1778514550000,-159.53,9.405e-05,2]
[422037655,1778514550000,-106.90737268,0.00013864,2]
[422037656,1778514626000,158.96,8.682e-05,2]
[422037731,1778514632000,-7556.37699281,0.00017159,2]
[422037683,1778514632000,-150.0,0.0001525,2]
[422037693,1778514632000,-508.67006946,0.00017037,2]
[422037685,1778514632000,-150.73183692,0.00015325,2]
[422037684,1778514632000,-300.0,0.00015325,2]
[422037695,1778514632000,-41.32993054,0.00017037,2]
[422037687,1778514632000,-166.66,0.00016378,2]
[422037686,1778514632000,-300.0,0.00016,2]
[422037697,1778514632000,-150.0,0.00017038,2]
[422037699,1778514632000,-152.21590126,0.00017038,2]
[422037702,1778514632000,-150.58497979,0.00017038,2]
[422037704,1778514632000,-150.0,0.00017038,2]
[422037716,1778514632000,-150.16673947,0.00017038,2]
[422037710,1778514632000,-150.0,0.00017038,2]
[422037708,1778514632000,-150.0,0.00017038,2]
[422037718,1778514632000,-150.0,0.00017038,2]
[422037714,1778514632000,-150.45594311,0.00017038,2]
[422037712,1778514632000,-150.6610077,0.00017038,2]
[422037721,1778514632000,-150.0,0.00017038,2]
[422037725,1778514632000,-8969.23,0.00017115,2]
[422037723,1778514632000,-150.0,0.00017038,2]
[422037727,1778514632000,-500.0,0.00017127,2]
[422037682,1778514632000,-240.19993609,0.00015203,2]
[422037706,1778514632000,-150.0,0.00017038,2]
[422037680,1778514632000,-500.0,0.00015203,2]
[422037691,1778514632000,-1680.0,0.00016718,2]
[422037660,1778514632000,-226.50965743,0.00014,2]
[422037729,1778514632000,-6685.73300719,0.00017159,2]
[422037658,1778514632000,-205.87016932,0.00013932,2]
[422037661,1778514632000,-23.49034257,0.00014,2]
[422037663,1778514632000,-300.0,0.00014717,2]
[422037665,1778514632000,-300.0,0.00015202,2]
[422037664,1778514632000,-326.73779767,0.00014717,2]
[422037666,1778514632000,-967.57438986,0.00015202,2]
[422037662,1778514632000,-300.0,0.00014717,2]
[422037667,1778514632000,-232.42561014,0.00015202,2]
[422037689,1778514632000,-193.0,0.00016634,2]
[422037669,1778514632000,-500.0,0.00015203,2]
[422037668,1778514632000,-151.0,0.00015203,2]
[422037670,1778514632000,-151.0,0.00015203,2]
[422037673,1778514632000,-151.0,0.00015203,2]
[422037679,1778514632000,-151.0,0.00015203,2]
[422037672,1778514632000,-151.0,0.00015203,2]
[422037678,1778514632000,-151.0,0.00015203,2]
[422037675,1778514632000,-151.0,0.00015203,2]
[422037674,1778514632000,-151.0,0.00015203,2]
[422037676,1778514632000,-151.0,0.00015203,2]
[422037677,1778514632000,-151.0,0.00015203,2]
[422037671,1778514632000,-151.0,0.00015203,2]
[422037733,1778514632000,-154.12,0.00017184,2]
[422037659,1778514632000,-300.0,0.00013966,2]
[422037739,1778514632000,-166.66,0.0001724,2]
[422037763,1778514632000,-150.0,0.00017964,2]
[422037768,1778514632000,-813.0,0.00017964,2]
[422037767,1778514632000,-150.0,0.00017964,2]
[422037770,1778514632000,-500.0,0.00017964,2]
[422037769,1778514632000,-295.96729925,0.00017964,2]
[422037771,1778514632000,-227.77564735,0.00017964,2]
[422037774,1778514632000,-500.0,0.00017964,2]
[422037772,1778514632000,-500.0,0.00017964,2]
[422037773,1778514632000,-813.0,0.00017964,2]
[422037775,1778514632000,-813.0,0.00017964,2]
[422037777,1778514632000,-401.20558508,0.00017964,2]
[422037788,1778514632000,-500.0,0.00017964,2]
[422037781,1778514632000,-813.0,0.00017964,2]
[422037778,1778514632000,-813.0,0.00017964,2]
[422037776,1778514632000,-813.0,0.00017964,2]
[422037783,1778514632000,-813.0,0.00017964,2]